Workbook

Sheet Instructivo
A1: CRITERIO DE PRIORIZACIÓN DE TRÁMITES ADMINISTRATIVOS
A2: Instructivo
A3: Consideraciones generales
A5: En las hojas “COSTO DE ADMINISTRACIÓN PÚBLICA”y “RESUMEN” para añadir más trámites y que apliquen las fórmulas, se deberá seleccionar la primera fila y copiarla una por cada trámite de la entidad
A7: Todas las hojas tienen columnas de color celeste, en las cuales NO deben ingresar valores ya que contienen fórmulas.
A8: Para la carga en GOB.EC. La institución debe recordar que el peso máximo del archivo es de 2 MB.
A9: Esquema de puntuación
A10: Para priorizar un trámite, se realizará un análisis de criterios básicos y adicionales basado en información que disponen las instituciones sujetas a esta norma técnica. Cada criterio será puntuado según los lineamientos presentes en esta norma.
A11: a) Demanda Anual
A12: Considerará el volumen o frecuencia de las solicitudes que ingresan al año a cada institución para la gestión de un trámite en particular.
A13: La identificación del volumen anual de los trámites se realizará a través de sus registros de transacciones y/o el número de visitas de consulta de información realizadas a través de páginas web institucionales.
A14: Para realizar el registro realice lo siguiente:
A15: 1.- Seleccione la hoja DEMANDA ANUAL
A16: 2.- Ingrese los trámites de la institución registrando el identificador y nombre en las columnas respectivas.
A17: 3.- Para cada trámite debe especificar en la columna DEMANDA ANUAL el volumen o frecuencia anual, de acuerdo a lo mencionado anteriormente.
A18: 4.- Una vez terminado el llenado solicitado presione el botón PUNTUACIÓN, se ordenara de menor a mayor.
A19: 5.- Usted visualizará el ordenamiento de los trámites ingresados de acuerdo al número de volumen o frecuencia anual.
A20: 6.- Así mismo, usted visualizará el puntaje obtenido en la columna PUNTUACIÓN de acuerdo al grupo obtenido por cada trámite de acuerdo al número de volumen o frecuencia anual cosiderando lo siguiente: ** Primer grupo (trámites con menor demanda no incluye los trámites con demanda 0 ) = 3 ** Segundo grupo (trámites con demanda intermedia) = 6 ** Tercer grupo (trámites con mayor demanda) = 10
A21: Cada vez que requiera actualizar el puntaje presionando el botón puntuación, debe verificar que la celda de la columna puntaje se encuentren vacías, es decir, se debe borrar cualquier valor de puntaje obtenido previamente.
A22: b) Volumen de quejas asociadas a un trámite:
A23: Considerará la cantidad de quejas recibidas en relación a un trámite durante un año. Estas quejas deberán estar documentadas en medios físicos y/o digitales.
A24: Para determinar la puntuación, se colocará en una tabla todos los trámites con sus correspondientes quejas ordenándose de menor a mayor. Se dividirá en 2 partes en los que cada grupo contenga la misma cantidad de trámites.
A25: Para realizar el registro realice lo siguiente:
A26: 1.- Seleccione la hoja VOLUMEN DE QUEJAS
A27: 2.- Ingrese los trámites de la institución registrando el identificador y nombre en las columnas respectivas. Si usted requiere de acuerdo al número de trámites copie filas adicionales que estén dentro del cuadro
A28: 3.- Para cada trámite debe especificar en la columna VOLUMEN QUEJAS el número de quejas anual, de acuerdo a lo mencionado anteriormente.
A29: 4.- Una vez terminado el llenado solicitado presione el botón PUNTUACIÓN.
A30: 5.- Usted visualizará el ordenamiento de los trámites ingresados de acuerdo al número de volumen o frecuencia anual.
A31: 6.- Así mismo, usted visualizará el puntaje obtenido en la columna PUNTUACIÓN de acuerdo al grupo obtenido por cada trámite de acuerdo al número de volumen o frecuencia anual cosiderando lo siguiente: La puntuación se basará en los siguientes grupos: ** Primer grupo (trámites con menor cantidad de quejas, no incluye los trámites con queja 0 ) = 4 ** Segundo grupo (trámites con mayor porcentaje de quejas) = 10
A32: El valor del volumen de quejas no debe ser superior al valor del volumen de la demana, no le permitirá registrar un valor.
A33: c) Costo para la administración pública:
A34: En cada trámite, basado en un caso estándar, se deberá estimar el costo incurrido en el costo de personal y recursos necesarios para su atención desde que el administrado entregó todos los requisitos hasta que la institución entregue el producto, respuesta o servicio requerido en el trámite. Se considerará:
A35: • Costo de personal:
A36: Costo del personal para atender el trámite, se excluyen actividades realizadas automáticamente o que dependen del administrado. El tiempo deberá considerar únicamente el tiempo efectivo de trabajo del personal, no debe considerar el tiempo de espera o de movimiento.
A37: • Costo de recursos:
A38: Se deberá considerar el costo directo en el que la institución debe incurrir para atender un trámite. Se debe considerar los insumos o materia prima necesaria u cualquier otro que la institución considere pertinente.
A39: Para realizar el registro realice lo siguiente:
A40: 1.- Seleccione la hoja COSTO ADMINISTRACIÓN PÚBLICA
A41: 2.- Ingrese los trámites de la institución registrando el identificador y nombre en las columnas respectivas. Si usted requiere de acuerdo al número de trámites copie filas adicionales que estén dentro del cuadro
A42: 3.- Para calcular el tiempo de las actividades, utilizar la hoja AUXILIAR COSTO ADMINISTRACIÓN donde deberá listar todas las actividades que realiza la institución en un caso estándar y asignar el tiempo mínimo que toma cada actvidad (en horas). El tiempo total de las actividades, deberá ingresar en la correspondiente celda de la hoja COSTO ADMINISTRACIÓN PÚBLICA
A43: 4.- En función de la información registrada en el paso 3, la matriz entregará el costo del personal
A44: 5.- Completar la columna "Costo recursos", en la cual ingresará el costo directo en el que incurre la institución para entregar el trámite. En este valor se considerarán los valores correspondientes a insumos y/o materia prima mínimos que se invierten por cada trámite (no se considera mano de obra)
A45: 6.- La columna "Costo para la adm. pública" mostrará el costto de este criterio para cada trámite
A46: 7,- Para que la fórmula funcione debe arrastrar hacia abajo al último de los támites ingresados, no copiar
A47: 7.- Una vez que disponga del Costo para la administración pública, presionar el botón "GENERAR".
A48: 8. Visualizar la hoja “RESUMEN DE COSTO AP” en la que va a encontrar copiada las celdas necesarias para el ordenamiento y puntuación de las mismas al presionar el botón “PUNTUACIÓN”
A50: d) Tiempo de respuesta:
A51: Considerará los tiempos que a las instituciones les toma dar respuesta a un trámite desde que reciben la solicitud del administrado hasta la finalización del mismo. Para la definición del tiempo se considerará un caso estándar.
A52: Para determinar la puntuación, se colocará en una tabla todos los trámites con el tiempo de respuesta, ordenándose de menor a mayor. Se dividirá en 4 grupos, en los que cada uno contenga la misma cantidad de trámites.
A53: Para realizar el registro realice lo siguiente:
A54: 1.- Seleccione la hoja TIEMPO DE RESPUESTA
A55: 2.- Ingrese los trámites de la institución registrando el identificador y nombre en las columnas respectivas. Si usted requiere de acuerdo al número de trámites copie filas adicionales que estén dentro del cuadro
A56: 3.- Para cada trámite debe especificar en la columna TIEMPO RESPUESTA el tiempo, de acuerdo a lo mencionado anteriormente.
A57: 4.- Una vez terminado el llenado solicitado presione el botón PUNTUACIÓN.
A58: 5.- Usted visualizará el ordenamiento de los trámites ingresados de acuerdo al número de volumen o frecuencia anual.
A59: 6.- Así mismo, usted visualizará el puntaje obtenido en la columna PUNTUACIÓN de acuerdo al grupo obtenido por cada trámite de acuerdo al número de volumen o frecuencia anual cosiderando lo siguiente: La puntuación considera lo siguiente: ** Primer grupo (menor o igual a 40 horas laboralres) = 0 ** Segundo grupo mayor 40 horas laboralres) = 30
A60: e) Canal de atención:
A61: Considerará los canales de atención a través de los cuales el administrado puede iniciar el trámite.
A62: Para realizar el registro realice lo siguiente:
A63: 1.- Seleccione la hoja CANAL ATENCIÓN
A64: 2.- Ingrese los trámites de la institución registrando el identificador y nombre en las columnas respectivas. Si usted requiere de acuerdo al número de trámites copie filas adicionales que estén dentro del cuadro
A65: 3.- Para cada trámite debe seleccionar el canal de atención del trámite en la columna CANAL ATENCIÓN, que pueden ser: El trámite se puede completar totalmente en línea: Se considera trámite totalmente en línea cuando el administrado no requiere realizar ninguna interacción presencial con la institución = 0 El trámite no se puede completar totalmente en línea: Se considera este caso, cuando el trámite incluye al menos una actividad, incluido mecanismos de pago, en la que el administrado deba acudir presencialmente a la institución, para la realización de dicho trámite. Los trámites presenciales se consideran dentro de esta categoría = 10
A66: 4.- De acuerdo a la selección usted obtendrá la puntuación del trámite que se visualizará en la columna PUNTUACIÓN.
A68: f) Resumen
A69: En esta hoja deberá consolidar todas las puntuaciones obtenidas para cada trámite en los criterios a) hasta e). Adicionalmente deberá analizar los criterios adicionales que dispone la norma técnica, para estos últimos solamente deberá seleccionar en la celda correspondiente y la matriz asignará la puntuación adicional. Los criterios que deberá considerar son: - NECESIDADES CIUDADANAS: Si la institución ha implementado mecanismos para identificar necesidades ciudadanas respecto al trámite, seleccionar "SI", caso contrario, seleccionar "NO" - SUSCEPTIBILIDAD A CORRUPCIÓN: Si la institución dispone de información documentada sobre presuntos actos de corrupción, seleccionar "SI", caso contrario, seleccionar "NO" - VOLUMEN DE DEVOLUCIONES: Si la institución posee documentación sobre devoluciones del trámite en una cantidad significativa, seleccionar "SI", caso contrario, seleccionar "NO" Para que funcione la lista depelgable debe arrastrar la lista y la puntuación hacia abajo al último de los támites ingresados, no copiar
A70: En la columna puntaje total se realizará la sumatoria de los valores de los criterios básicos y adicionales. Este valor deberá registrarse en la plataforma GOB.EC

Sheet DEMANDA ANUAL
A1: PRIORIZACIÓN DE TRÁMITES ADMINISTRATIVOS
A2: DEMANDA ANUAL
A4: IDENTIFICADOR | B4: TRÁMITE | C4: DEMANDA ANUAL | D4: PUNTAJE
A5: INMOBILIAR-006-01-02 | B5: Solicitud de venta de cuota de participación estatal sobre bienes inmuebles y muebles en sucesiones intestadas | C5: 8 | D5: 3
A6: INMOBILIAR-006-01-01 | B6: Venta de cuota de participación estatal sobre bienes inmuebles en sucesiones intestadas | C6: 17 | D6: 3
A7: INMOBILIAR-012-01-05 | B7: Uso de Grúa | C7: 697 | D7: 3
A8: INMOBILIAR-011-02-01 | B8: Asignación de áreas deportivas | C8: 709 | D8: 6
A9: INMOBILIAR-011-01-01 | B9: Reservación de áreas para eventos, deportes y recreación | C9: 1230 | D9: 6
A10: INMOBILIAR-012-01-04 | B10: Venta de hielo | C10: 1885 | D10: 6
A11: INMOBILIAR-012-01-02 | B11: Fondeo de embarcaciones | C11: 5509 | D11: 10
A12: INMOBILIAR-012-01-01 | B12: Uso de muelle nodriza o muelle flotante | C12: 20853 | D12: 10
A13: INMOBILIAR-012-01-03 | B13: Renta de espacios por metro cuadrado | C13: 106498 | D13: 10

Sheet VOLUMEN DE QUEJAS
A1: PRIORIZACIÓN DE TRÁMITES ADMINISTRATIVOS
A2: VOLUMEN DE QUEJAS
A4: IDENTIFICADOR | B4: TRÁMITE | C4: VOLUMEN DEMANDA | D4: VOLUMEN DE QUEJAS | E4: PORCENTAJE | F4: PUNTUACIÓN
A5: INMOBILIAR-006-01-02 | B5: Solicitud de venta de cuota de participación estatal sobre bienes inmuebles y muebles en sucesiones intestadas | C5: 8 | D5: 0 | E5: 0 | F5: 0
A6: INMOBILIAR-006-01-01 | B6: Venta de cuota de participación estatal sobre bienes inmuebles en sucesiones intestadas | C6: 17 | D6: 0 | E6: 0 | F6: 0
A7: INMOBILIAR-012-01-05 | B7: Uso de Grúa | C7: 697 | D7: 0 | E7: 0 | F7: 0
A8: INMOBILIAR-011-02-01 | B8: Asignación de áreas deportivas | C8: 709 | D8: 0 | E8: 0 | F8: 0
A9: INMOBILIAR-011-01-01 | B9: Reservación de áreas para eventos, deportes y recreación | C9: 1230 | D9: 0 | E9: 0 | F9: 0
A10: INMOBILIAR-012-01-04 | B10: Venta de hielo | C10: 1885 | D10: 0 | E10: 0 | F10: 0
A11: INMOBILIAR-012-01-02 | B11: Fondeo de embarcaciones | C11: 5509 | D11: 0 | E11: 0 | F11: 0
A12: INMOBILIAR-012-01-01 | B12: Uso de muelle nodriza o muelle flotante | C12: 20853 | D12: 0 | E12: 0 | F12: 0
A13: INMOBILIAR-012-01-03 | B13: Renta de espacios por metro cuadrado | C13: 106498 | D13: 0 | E13: 0 | F13: 0

Sheet COSTO ADMINISTRACIÓN PÚBLICA
A1: PRIORIZACIÓN DE TRÁMITES ADMINISTRATIVOS
A2: COSTOS PARA LA ADMINISTRACIÓN PÚBLICA
A4: IDENTIFICADOR | B4: TRÁMITE | C4: INSUMOS PARA COSTO | F4: COSTO PARA LA ADM. PÚBLICA | H4: SBU | I4: 400
C5: TIEMPO (HORAS) | D5: COSTO PERSONAL | E5: COSTO RECURSOS
A6: INMOBILIAR-006-01-02 | B6: Solicitud de venta de cuota de participación estatal sobre bienes inmuebles y muebles en sucesiones intestadas | C6: =+'AUX CA 006-01-02'!C29 -> 49 | D6: =C6*$I$4/160 -> 122.5 | E6: =+'AUX CA 006-01-02'!F7 -> 711 | F6: =D6+E6 -> 833.5
A7: INMOBILIAR-006-01-01 | B7: Venta de cuota de participación estatal sobre bienes inmuebles en sucesiones intestadas | C7: =+'AUX CA 006-01-01'!C27 -> 44 | D7: =C7*$I$4/160 -> 110 | E7: =+'AUX CA 006-01-01'!F7 -> 711 | F7: =D7+E7 -> 821
A8: INMOBILIAR-012-01-05 | B8: Uso de Grúa | C8: =+'AUX CA 012-01-05'!C10 -> 0.1666666667 | D8: 0.4166666667 | E8: =+'AUX CA 012-01-05'!F7 -> 3 | F8: 3.416666667
A9: INMOBILIAR-011-02-01 | B9: Asignación de áreas deportivas | C9: =+'AUX CA 011-02-01'!C10 -> 0.5 | D9: 1.25 | E9: =+'AUX CA 011-02-01'!F7 -> 0.6 | F9: 1.85
A10: INMOBILIAR-011-01-01 | B10: Reservación de áreas para eventos, deportes y recreación | C10: =+'AUX CA 011-01-01'!C10 -> 0.7166666667 | D10: 1.791666667 | E10: =+'AUX CA 011-01-01'!F7 -> 0.5 | F10: 2.291666667
A11: INMOBILIAR-012-01-04 | B11: Venta de hielo | C11: =+'AUX CA 012-01-04'!C8 -> 0.15 | D11: 0.375 | E11: =+'AUX CA 012-01-04'!F7 -> 3 | F11: 3.375
A12: INMOBILIAR-012-01-02 | B12: Fondeo de embarcaciones | C12: =+'AUX CA 012-01-02'!C10 -> 0.1666666667 | D12: 0.4166666667 | E12: =+'AUX CA 012-01-02'!F7 -> 3 | F12: 3.416666667
A13: INMOBILIAR-012-01-01 | B13: Uso de muelle nodriza o muelle flotante | C13: =+'AUX CA 012-01-01'!C10 -> 0.1666666667 | D13: 0.4166666667 | E13: =+'AUX CA 012-01-01'!F7 -> 3 | F13: 3.416666667
A14: INMOBILIAR-012-01-03 | B14: Renta de espacios por metro cuadrado | C14: =+'AUX CA 012-01-03'!C10 -> 0.1666666667 | D14: 0.4166666667 | E14: =+'AUX CA 012-01-03'!F7 -> 3 | F14: 3.416666667

Sheet RESUMEN DE COSTOS AP
A1: PRIORIZACIÓN DE TRÁMITES ADMINISTRATIVOS
A2: COSTOS PARA LA ADMINISTRACIÓN PÚBLICA
A4: IDENTIFICADOR | B4: TRÁMITE | C4: COSTO PARA LA ADM. PÚBLICA | D4: PUNTUACIÓN
A5: INMOBILIAR-011-02-01 | B5: Asignación de áreas deportivas | C5: 1.85 | D5: 5
A6: INMOBILIAR-011-01-01 | B6: Reservación de áreas para eventos, deportes y recreación | C6: 2.291666667 | D6: 5
A7: INMOBILIAR-012-01-04 | B7: Venta de hielo | C7: 3.375 | D7: 5
A8: INMOBILIAR-012-01-02 | B8: Fondeo de embarcaciones | C8: 3.416666667 | D8: 10
A9: INMOBILIAR-012-01-03 | B9: Renta de espacios por metro cuadrado | C9: 3.416666667 | D9: 10
A10: INMOBILIAR-012-01-05 | B10: Uso de Grúa | C10: 3.416666667 | D10: 10
A11: INMOBILIAR-012-01-01 | B11: Uso de muelle nodriza o muelle flotante | C11: 3.416666667 | D11: 10
A12: INMOBILIAR-006-01-01 | B12: Venta de cuota de participación estatal sobre bienes inmuebles en sucesiones intestadas | C12: 821 | D12: 20
A13: INMOBILIAR-006-01-02 | B13: Solicitud de venta de cuota de participación estatal sobre bienes inmuebles y muebles en sucesiones intestadas | C13: 833.5 | D13: 20

Sheet AUX CA 006-01-01
A2: TRÁMITE: | B2: INMOBILIAR-006-01-01 Venta de cuota de participación estatal sobre bienes inmuebles en sucesiones intestadas | E2: COSTO DE RECURSOS
A3: NO. | B3: ACTIVIDAD | C3: TIEMPO (HORAS) | E3: Impresiones | F3: 1
A4: 1 | B4: Revisar y reasignar solicitud | C4: 0.2 | E4: Computador | F4: 400
A5: 2 | B5: Analizar y revisar requisitos y solicitud | C5: 4 | E5: Internet | F5: 10
A6: 3 | B6: Elaborar providencia de inicio y disponer diligencias | C6: 1 | E6: Estación de Trabajo | F6: 300
A7: 4 | B7: Elaborar oficios de disposición de diligencias (Procuraduría, Registro Civil, Dirección de Análisis y Uso de Bienes, Dirección de Catastro y Valoración de Bienes, Coordinación Zonal correspondiente) | C7: 1 | E7: TOTAL | F7: =SUM(F3:F6) -> 711
A8: 5 | B8: Elaborar expediente | C8: 0.7
A9: 6 | B9: Elaborar informe técnico correspondiente DAUB | C9: 8
A10: 7 | B10: Elaborar informe técnico correspondiente DCVB | C10: 8
A11: 8 | B11: Elaborar providencia de sustanciación del expediente administrativo | C11: 1
A12: 9 | B12: Elaborar providencia de sustanciación del expediente administrativo | C12: 1
A13: 10 | B13: Elaborar providencia disponiendo elaboración informe de cálculo | C13: 1
A14: 11 | B14: Disponer elaboración de informe de cálculo | C14: 0.5
A15: 12 | B15: Elaborar informe de cálculo de cuota estatal | C15: 4
A16: 13 | B16: Validar previamente informe de cálculo de cuota estatal | C16: 2
A17: 14 | B17: Elaborar memorando solicitando la validación del cálculo | C17: 0.5
A18: 15 | B18: Validar informe de cálculo de cuota estatal | C18: 1
A19: 16 | B19: Elaborar providencia (poniendo en conocimiento el cálculo) | C19: 1
A20: 17 | B20: Elaborar escrito de aceptación o no del cálculo | C20: 1
A21: 18 | B21: Elaborar providencia (incorporando la aceptación o no del cálculo) | C21: 1
A22: 19 | B22: Elaborar memorando de solicitud de autorización de elaboración de Resolución de venta de cuota estatal | C22: 1
A23: 20 | B23: Autorizar o no la elaboración de la Resolución de venta de cuota estatal | C23: 1
A24: 21 | B24: Elaborar Resolución de venta de cuota estatal | C24: 4
A25: 22 | B25: Suscribir Resolución de venta de cuota estatal | C25: 0.1
A26: 23 | B26: Elaborar providencia de notificación al peticionario | C26: 1
B27: SUMATORIA ACTIVIDADES | C27: =SUM(C4:C26) -> 44

Sheet AUX CA 006-01-02
A2: TRÁMITE: | B2: INMOBILIAR-006-01-02 Solicitud de venta de cuota de participación estatal sobre bienes inmuebles y muebles en sucesiones intestadas | E2: COSTO DE RECURSOS
A3: NO. | B3: ACTIVIDAD | C3: TIEMPO (HORAS) | E3: Impresiones | F3: 1
A4: 1 | B4: Revisar y reasignar solicitud | C4: 0.2 | E4: Computador | F4: 400
A5: 2 | B5: Analizar y revisar requisitos y solicitud | C5: 4 | E5: Internet | F5: 10
A6: 3 | B6: Elaborar providencia de inicio y disponer diligencias | C6: 1 | E6: Estación de Trabajo | F6: 300
A7: 4 | B7: Elaborar oficios de disposición de diligencias (Procuraduría, Registro Civil, Dirección de Análisis y Uso de Bienes, Dirección de Catastro y Valoración de Bienes, Coordinación Zonal correspondiente) | C7: 1 | E7: TOTAL | F7: =SUM(F3:F6) -> 711
A8: 5 | B8: Elaborar expediente | C8: 0.7
A9: 6 | B9: Elaborar informe técnico correspondiente DAUB | C9: 8
A10: 7 | B10: Elaborar informe técnico correspondiente DCVB | C10: 8
A11: 8 | B11: Elaborar providencia de sustanciación del expediente administrativo | C11: 1
A12: 9 | B12: Elaborar providencia de sustanciación del expediente administrativo | C12: 1
A13: 10 | B13: Elaborar providencia disponiendo elaboración informe de cálculo | C13: 1
A14: 11 | B14: Disponer elaboración de informe de cálculo | C14: 0.5
A15: 12 | B15: Elaborar informe de cálculo de cuota estatal | C15: 4
A16: 13 | B16: Validar previamente informe de cálculo de cuota estatal | C16: 2
A17: 14 | B17: Elaborar memorando solicitando la validación del cálculo | C17: 0.5
A18: 15 | B18: Validar informe de cálculo de cuota estatal | C18: 1
A19: 16 | B19: Solicitar validación del cálculo de cuota estatal de bienes muebles al MEF | C19: 1
A20: 17 | B20: Validar en caso de bienes muebles el cálculo de cuota estatal | C20: 4
A21: 18 | B21: Elaborar providencia (poniendo en conocimiento el cálculo) | C21: 1
A22: 19 | B22: Elaborar escrito de aceptación o no del cálculo | C22: 1
A23: 20 | B23: Elaborar providencia (incorporando la aceptación o no del cálculo) | C23: 1
A24: 21 | B24: Elaborar memorando de solicitud de autorización de elaboración de Resolución de venta de cuota estatal | C24: 1
A25: 22 | B25: Autorizar o no la elaboración de la Resolución de venta de cuota estatal | C25: 1
A26: 23 | B26: Elaborar Resolución de venta de cuota estatal | C26: 4
A27: 24 | B27: Suscribir Resolución de venta de cuota estatal | C27: 0.1
A28: 25 | B28: Elaborar providencia de notificación al peticionario | C28: 1
B29: SUMATORIA ACTIVIDADES | C29: =SUM(C4:C28) -> 49

Sheet AUX CA 011-01-01
A2: TRÁMITE: | B2: INMOBILIAR-011-01-01 - Reservación de áreas para eventos, deportes y recreación | E2: COSTO DE RECURSOS
A3: NO. | B3: ACTIVIDAD | C3: TIEMPO (HORAS) | E3: Impresiones | F3: 0.3
A4: 1 | B4: Verificar disponibilidad de áreas para eventos, deportes y recreación | C4: =5/60 -> 0.08333333333 | E4: Facturación | F4: 0.1
A5: 2 | B5: Asignar áreas para eventos, deportes y recreación | C5: =2/60 -> 0.03333333333 | E5: Internet | F5: 0.1
A6: 3 | B6: Verificar hora de inicio de utilización del recurso utilizado | C6: =10/60 -> 0.1666666667
A7: 4 | B7: Verificar hora de fin de utilización del recurso utilizado | C7: =10/60 -> 0.1666666667 | E7: TOTAL | F7: =SUM(F3:F6) -> 0.5
A8: 5 | B8: Facturar por tiempo utilizado | C8: =10/60 -> 0.1666666667
A9: 6 | B9: Entregar factura al ciudadano | C9: =1/10 -> 0.1
B10: SUMATORIA ACTIVIDADES | C10: =SUM(C4:C9) -> 0.7166666667

Sheet AUX CA 011-02-01
A2: TRÁMITE: | B2: INMOBILIAR-011-02-01 Asignación de áreas deportivas | E2: COSTO DE RECURSOS
A3: NO. | B3: ACTIVIDAD | C3: TIEMPO (HORAS) | E3: Impresiones | F3: 0.4
A4: 1 | B4: Verificar disponibilidad de áreas deportivas | C4: =5/60 -> 0.08333333333 | E4: Facturación | F4: 0.1
A5: 2 | B5: Asignar áreas deportivas | C5: =2/60 -> 0.03333333333 | E5: Internet | F5: 0.1
A6: 3 | B6: Verificar hora de inicio de utilización del recurso utilizado | C6: =10/60 -> 0.1666666667
A7: 4 | B7: Verificar hora de fin de utilización del recurso utilizado | C7: =2/60 -> 0.03333333333 | E7: TOTAL | F7: =SUM(F3:F6) -> 0.6
A8: 5 | B8: Facturar por tiempo utilizado | C8: =10/60 -> 0.1666666667
A9: 6 | B9: Entregar factura al ciudadano | C9: =1/60 -> 0.01666666667
B10: SUMATORIA ACTIVIDADES | C10: =SUM(C4:C9) -> 0.5

Sheet AUX CA 012-01-01
A2: TRÁMITE: | B2: INMOBILIAR-012-01-01 - Uso de muelle nodriza o muelle flotante | E2: COSTO DE RECURSOS
A3: NO. | B3: ACTIVIDAD | C3: TIEMPO (HORAS) | E3: Impresiones | F3: 0.5
A4: 1 | B4: Verificar disponibilidad de muelle nodriza o muelle flotante | C4: =3/60 -> 0.05 | E4: Facturación | F4: 0.5
A5: 2 | B5: Asignar muelle nodriza o muelle flotante | C5: =1/60 -> 0.01666666667 | E5: Útiles de oficina | F5: 2
A6: 3 | B6: Verificar hora de inicio de utilización del recurso utilizado | C6: =1/60 -> 0.01666666667
A7: 4 | B7: Verificar hora de fin de utilización del recurso utilizado | C7: =2/60 -> 0.03333333333 | E7: TOTAL | F7: =SUM(F3:F6) -> 3
A8: 5 | B8: Facturar por tiempo utilizado | C8: =2/60 -> 0.03333333333
A9: 6 | B9: Entregar factura al ciudadano | C9: =1/60 -> 0.01666666667
B10: SUMATORIA ACTIVIDADES | C10: =SUM(C4:C9) -> 0.1666666667

Sheet AUX CA 012-01-02
A2: TRÁMITE: | B2: INMOBILIAR-012-01-02 - Fondeo de embarcaciones | E2: COSTO DE RECURSOS
A3: NO. | B3: ACTIVIDAD | C3: TIEMPO (HORAS) | E3: Impresiones | F3: 0.5
A4: 1 | B4: Verificar espacios disponibles para fondeo de embarcaciones | C4: =3/60 -> 0.05 | E4: Facturación | F4: 0.5
A5: 2 | B5: Asignar espacio para fondeo de embarcaciones | C5: =1/60 -> 0.01666666667 | E5: Útiles de oficina | F5: 2
A6: 3 | B6: Verificar hora de inicio de utilización del recurso utilizado | C6: =1/60 -> 0.01666666667
A7: 4 | B7: Verificar hora de fin de utilización del recurso utilizado | C7: =2/60 -> 0.03333333333 | E7: TOTAL | F7: =SUM(F3:F6) -> 3
A8: 5 | B8: Facturar por tiempo utilizado | C8: =2/60 -> 0.03333333333
A9: 6 | B9: Entregar factura al ciudadano | C9: =1/60 -> 0.01666666667
B10: SUMATORIA ACTIVIDADES | C10: =SUM(C4:C9) -> 0.1666666667

Sheet AUX CA 012-01-03
A2: TRÁMITE: | B2: INMOBILIAR-012-01-03 - Renta de espacios por metro cuadrado | E2: COSTO DE RECURSOS
A3: NO. | B3: ACTIVIDAD | C3: TIEMPO (HORAS) | E3: Impresiones | F3: 0.5
A4: 1 | B4: Verificar espacios disponibles para Renta de espacios por metro cuadrado | C4: =3/60 -> 0.05 | E4: Facturación | F4: 0.5
A5: 2 | B5: Asignar espacio para Renta de espacios por metro cuadrado | C5: =1/60 -> 0.01666666667 | E5: Útiles de oficina | F5: 2
A6: 3 | B6: Verificar hora de inicio de utilización del recurso utilizado | C6: =1/60 -> 0.01666666667
A7: 4 | B7: Verificar hora de fin de utilización del recurso utilizado | C7: =2/60 -> 0.03333333333 | E7: TOTAL | F7: =SUM(F3:F6) -> 3
A8: 5 | B8: Facturar por tiempo utilizado | C8: =2/60 -> 0.03333333333
A9: 6 | B9: Entregar factura al ciudadano | C9: =1/60 -> 0.01666666667
B10: SUMATORIA ACTIVIDADES | C10: =SUM(C4:C9) -> 0.1666666667

Sheet AUX CA 012-01-04
A2: TRÁMITE: | B2: INMOBILIAR-012-01-04 - Venta de hielo | E2: COSTO DE RECURSOS
A3: NO. | B3: ACTIVIDAD | C3: TIEMPO (HORAS) | E3: Impresiones | F3: 0.5
A4: 1 | B4: Verificar disponibilidad de hielo | C4: =1/60 -> 0.01666666667 | E4: Facturación | F4: 0.5
A5: 2 | B5: Entregar el hielo solicitado | C5: =5/60 -> 0.08333333333 | E5: Útiles de oficina | F5: 2
A6: 3 | B6: Facturar hielo | C6: =2/60 -> 0.03333333333
A7: 4 | B7: Entregar factura al ciudadano | C7: =1/60 -> 0.01666666667 | E7: TOTAL | F7: =SUM(F3:F6) -> 3
B8: SUMATORIA ACTIVIDADES | C8: =SUM(C4:C7) -> 0.15

Sheet AUX CA 012-01-05
A2: TRÁMITE: | B2: INMOBILIAR-012-01-05 - Uso de Grúa | E2: COSTO DE RECURSOS
A3: NO. | B3: ACTIVIDAD | C3: TIEMPO (HORAS) | E3: Impresiones | F3: 0.5
A4: 1 | B4: Verificar grúas disponibles | C4: =3/60 -> 0.05 | E4: Facturación | F4: 0.5
A5: 2 | B5: Asignar grúa | C5: =1/60 -> 0.01666666667 | E5: Útiles de oficina | F5: 2
A6: 3 | B6: Verificar hora de inicio de utilización del recurso utilizado | C6: =1/60 -> 0.01666666667
A7: 4 | B7: Verificar hora de fin de utilización del recurso utilizado | C7: =2/60 -> 0.03333333333 | E7: TOTAL | F7: =SUM(F3:F6) -> 3
A8: 5 | B8: Facturar por tiempo utilizado | C8: =2/60 -> 0.03333333333
A9: 6 | B9: Entregar factura al ciudadano | C9: =1/60 -> 0.01666666667
B10: SUMATORIA ACTIVIDADES | C10: =SUM(C4:C9) -> 0.1666666667

Sheet TIEMPO DE RESPUESTA
A1: PRIORIZACIÓN DE TRÁMITES ADMINISTRATIVOS
A2: TIEMPO DE RESPUESTA
A4: IDENTIFICADOR | B4: TRÁMITE | C4: TIEMPO RESPUESTA (horas laborables) | D4: PUNTUACIÓN
A5: INMOBILIAR-006-01-02 | B5: Solicitud de venta de cuota de participación estatal sobre bienes inmuebles y muebles en sucesiones intestadas | C5: 904 | D5: 30
A6: INMOBILIAR-006-01-01 | B6: Venta de cuota de participación estatal sobre bienes inmuebles en sucesiones intestadas | C6: 856 | D6: 30
A7: INMOBILIAR-012-01-05 | B7: Uso de Grúa | C7: =13/60 -> 0.2166666667 | D7: 0
A8: INMOBILIAR-011-02-01 | B8: Asignación de áreas deportivas | C8: =13/60 -> 0.2166666667 | D8: 0
A9: INMOBILIAR-011-01-01 | B9: Reservación de áreas para eventos, deportes y recreación | C9: =13/60 -> 0.2166666667 | D9: 0
A10: INMOBILIAR-012-01-04 | B10: Venta de hielo | C10: =10/60 -> 0.1666666667 | D10: 0
A11: INMOBILIAR-012-01-02 | B11: Fondeo de embarcaciones | C11: =13/60 -> 0.2166666667 | D11: 0
A12: INMOBILIAR-012-01-01 | B12: Uso de muelle nodriza o muelle flotante | C12: =13/60 -> 0.2166666667 | D12: 0
A13: INMOBILIAR-012-01-03 | B13: Renta de espacios por metro cuadrado | C13: =13/60 -> 0.2166666667 | D13: 0

Sheet CANAL ATENCIÓN
A1: PRIORIZACIÓN DE TRÁMITES ADMINISTRATIVOS
A2: CANAL DE ATENCIÓN
I3: Totalmente en Línea | L3: 0
A4: IDENTIFICADOR | B4: TRÁMITE | C4: CANAL ATENCIÓN | D4: PUNTUACIÓN | I4: No se completa totalmente en línea. | L4: 10
A5: INMOBILIAR-006-01-02 | B5: Solicitud de venta de cuota de participación estatal sobre bienes inmuebles y muebles en sucesiones intestadas | C5: No se completa totalmente en línea. | D5: =IF(ISBLANK(C5),"",IF(C5="Totalmente en línea",0,IF(C5="Inicia en línea",6,10))) -> 10
A6: INMOBILIAR-006-01-01 | B6: Venta de cuota de participación estatal sobre bienes inmuebles en sucesiones intestadas | C6: No se completa totalmente en línea. | D6: =IF(ISBLANK(C6),"",IF(C6="Totalmente en línea",0,IF(C6="Inicia en línea",6,10))) -> 10
A7: INMOBILIAR-012-01-05 | B7: Uso de Grúa | C7: No se completa totalmente en línea. | D7: 10
A8: INMOBILIAR-011-02-01 | B8: Asignación de áreas deportivas | C8: No se completa totalmente en línea. | D8: 10
A9: INMOBILIAR-011-01-01 | B9: Reservación de áreas para eventos, deportes y recreación | C9: No se completa totalmente en línea. | D9: 10
A10: INMOBILIAR-012-01-04 | B10: Venta de hielo | C10: No se completa totalmente en línea. | D10: 10
A11: INMOBILIAR-012-01-02 | B11: Fondeo de embarcaciones | C11: No se completa totalmente en línea. | D11: 10
A12: INMOBILIAR-012-01-01 | B12: Uso de muelle nodriza o muelle flotante | C12: No se completa totalmente en línea. | D12: 10
A13: INMOBILIAR-012-01-03 | B13: Renta de espacios por metro cuadrado | C13: No se completa totalmente en línea. | D13: 10

Sheet RESUMEN
C1: BÁSICOS | H1: ADICIONALES
A2: ID trámite | B2: Nombre del trámite | C2: Demanda | D2: Quejas | E2: Costo para administración | F2: Tiempo de respuesta | G2: Canal de atención | H2: Necesidades ciudadanas | J2: Susceptibilidad a corrupción | L2: Volumen de devoluciones | N2: PUNTAJE TOTAL
H3: Criterio | I3: Puntuación | J3: Criterio | K3: Puntuación | L3: Criterio | M3: Puntuación | U3: demanda | V3: 0 | W3: 3 | X3: 6 | Y3: 10
A4: INMOBILIAR-006-01-02 | B4: Solicitud de venta de cuota de participación estatal sobre bienes inmuebles y muebles en sucesiones intestadas | C4: 3 | D4: 0 | E4: 20 | F4: 30 | G4: 10 | H4: NO | I4: =IF(H4="SI",5,0) -> 0 | J4: NO | K4: =IF(J4="SI",10,0) -> 0 | L4: NO | M4: =IF(L4="SI",5,0) -> 0 | N4: =SUM(C4:G4,I4,K4,M4) -> 63 | U4: quejas | V4: 0 | W4: 4 | X4: 10
A5: INMOBILIAR-006-01-01 | B5: Venta de cuota de participación estatal sobre bienes inmuebles en sucesiones intestadas | C5: 3 | D5: 0 | E5: 20 | F5: 30 | G5: 10 | H5: NO | I5: =IF(H5="SI",5,0) -> 0 | J5: NO | K5: =IF(J5="SI",10,0) -> 0 | L5: NO | M5: =IF(L5="SI",5,0) -> 0 | N5: =SUM(C5:G5,I5,K5,M5) -> 63 | U5: cpa | V5: 5 | W5: 10 | X5: 20
A6: INMOBILIAR-012-01-05 | B6: Uso de Grúa | C6: 3 | D6: 0 | E6: 10 | F6: 0 | G6: 10 | H6: NO | I6: 0 | J6: NO | K6: 0 | L6: NO | M6: 0 | N6: 23 | U6: tr | V6: 0 | W6: 30
A7: INMOBILIAR-011-02-01 | B7: Asignación de áreas deportivas | C7: 6 | D7: 0 | E7: 5 | F7: 0 | G7: 10 | H7: NO | I7: 0 | J7: NO | K7: 0 | L7: NO | M7: 0 | N7: 21 | U7: ca | V7: 0 | W7: 10
A8: INMOBILIAR-011-01-01 | B8: Reservación de áreas para eventos, deportes y recreación | C8: 6 | D8: 0 | E8: 5 | F8: 0 | G8: 10 | H8: NO | I8: 0 | J8: NO | K8: 0 | L8: NO | M8: 0 | N8: 21 | V8: SI | W8: NO
A9: INMOBILIAR-012-01-04 | B9: Venta de hielo | C9: 6 | D9: 0 | E9: 5 | F9: 0 | G9: 10 | H9: NO | I9: 0 | J9: NO | K9: 0 | L9: NO | M9: 0 | N9: 21
A10: INMOBILIAR-012-01-02 | B10: Fondeo de embarcaciones | C10: 10 | D10: 0 | E10: 10 | F10: 0 | G10: 10 | H10: NO | I10: 0 | J10: NO | K10: 0 | L10: NO | M10: 0 | N10: 30
A11: INMOBILIAR-012-01-01 | B11: Uso de muelle nodriza o muelle flotante | C11: 10 | D11: 0 | E11: 10 | F11: 0 | G11: 10 | H11: NO | I11: 0 | J11: NO | K11: 0 | L11: NO | M11: 0 | N11: 30
A12: INMOBILIAR-012-01-03 | B12: Renta de espacios por metro cuadrado | C12: 10 | D12: 0 | E12: 10 | F12: 0 | G12: 10 | H12: NO | I12: 0 | J12: NO | K12: 0 | L12: NO | M12: 0 | N12: 30
